[Event "Late-Titled-Tuesday-Blitz-January-23-2024"]
[Site "Chess.com"]
[Date "2024.01.23"]
[Round "8"]
[White "SmirnovTimofey2000"]
[Black "TheMagician"]
[Result "0-1"]
[WhiteElo "1958"]
[BlackElo "2141"]
[TimeControl "180+1"]
[EndTime "15:24:10 PST"]
[Termination "TheMagician won on time"]

1. e4 {[%clk 0:03:00.9]} 1... d5 {[%clk 0:02:59.3]} 2. exd5 {[%clk 0:03:00.1]}
2... Qxd5 {[%clk 0:02:58.5]} 3. Nf3 {[%clk 0:02:58.9]} 3... Bg4 {[%clk
0:02:56.3]} 4. Be2 {[%clk 0:02:52.9]} 4... Nc6 {[%clk 0:02:55.2]} 5. Nc3 {[%clk
0:02:52]} 5... Qa5 {[%clk 0:02:53.1]} 6. O-O {[%clk 0:02:49]} 6... O-O-O {[%clk
0:02:52.9]} 7. h3 {[%clk 0:02:49.1]} 7... Bxf3 {[%clk 0:02:49.5]} 8. Bxf3 {[%clk
0:02:45.8]} 8... Nd4 {[%clk 0:02:49.7]} 9. d3 {[%clk 0:02:40.2]} 9... e5 {[%clk
0:02:42.7]} 10. Bd2 {[%clk 0:02:32.3]} 10... f5 {[%clk 0:02:38.2]} 11. b4 {[%clk
0:02:18.6]} 11... Bxb4 {[%clk 0:02:36.1]} 12. Rb1 {[%clk 0:02:16.1]} 12... c6
{[%clk 0:02:26.4]} 13. Ne4 {[%clk 0:01:30]} 13... Nxf3+ {[%clk 0:02:10.6]} 14.
gxf3 {[%clk 0:01:25.8]} 14... Bxd2 {[%clk 0:02:10.5]} 15. Nxd2 {[%clk
0:01:24.8]} 15... Nf6 {[%clk 0:02:04.1]} 16. Nc4 {[%clk 0:01:20.7]} 16... Qc7
{[%clk 0:02:03.5]} 17. Re1 {[%clk 0:01:17.4]} 17... Rhe8 {[%clk 0:02:03.5]} 18.
Qd2 {[%clk 0:01:13.5]} 18... e4 {[%clk 0:01:55.9]} 19. fxe4 {[%clk 0:01:13.4]}
19... fxe4 {[%clk 0:01:56]} 20. Qb4 {[%clk 0:00:16]} 20... b6 {[%clk 0:01:52.4]}
21. a4 {[%clk 0:00:13.6]} 21... Nd5 {[%clk 0:01:51.8]} 22. Qb3 {[%clk 0:00:12]}
22... e3 {[%clk 0:01:43.2]} 23. Nxe3 {[%clk 0:00:10.9]} 23... Nxe3 {[%clk
0:01:43.1]} 24. Rxe3 {[%clk 0:00:10.4]} 24... Rxe3 {[%clk 0:01:43.1]} 25. fxe3
{[%clk 0:00:10.8]} 25... Qg3+ {[%clk 0:01:43]} 26. Kf1 {[%clk 0:00:10.8]} 26...
Rf8+ {[%clk 0:01:38.3]} 27. Ke2 {[%clk 0:00:10.6]} 27... Qf3+ {[%clk 0:01:33.8]}
28. Kd2 {[%clk 0:00:10.6]} 28... Qf2+ {[%clk 0:01:31.3]} 29. Kc3 {[%clk
0:00:10.6]} 29... Qxe3 {[%clk 0:01:30.3]} 30. Qb4 {[%clk 0:00:05.9]} 30... Rf5
{[%clk 0:01:19.2]} 31. Qg4 {[%clk 0:00:04.2]} 31... g6 {[%clk 0:01:17]} 32. Rg1
{[%clk 0:00:01.8]} 32... Kb7 {[%clk 0:01:12.4]} 33. Qc4 {[%clk 0:00:01.6]} 33...
Rc5 {[%clk 0:01:11.3]} 0-1

[Event "Late-Titled-Tuesday-Blitz-January-23-2024"]
[Site "Chess.com"]
[Date "2024.01.23"]
[Round "8"]
[White "otrov-11"]
[Black "Ducke13"]
[Result "1-0"]
[WhiteElo "2488"]
[BlackElo "2312"]
[TimeControl "180+1"]
[EndTime "15:24:27 PST"]
[Termination "otrov-11 won on time"]

1. d4 {[%clk 0:02:57.6]} 1... Nf6 {[%clk 0:03:00.1]} 2. c4 {[%clk 0:02:57.7]}
2... g6 {[%clk 0:03:00.5]} 3. g3 {[%clk 0:02:58.3]} 3... Bg7 {[%clk 0:02:55.8]}
4. Bg2 {[%clk 0:02:59.2]} 4... c5 {[%clk 0:02:52.8]} 5. Nc3 {[%clk 0:03:00.1]}
5... cxd4 {[%clk 0:02:52.3]} 6. Qxd4 {[%clk 0:02:59.2]} 6... O-O {[%clk
0:02:52.3]} 7. Nf3 {[%clk 0:02:59]} 7... Nc6 {[%clk 0:02:49.9]} 8. Qd2 {[%clk
0:02:59]} 8... d6 {[%clk 0:02:45.9]} 9. O-O {[%clk 0:02:59.1]} 9... Be6 {[%clk
0:02:32.7]} 10. b3 {[%clk 0:02:36.8]} 10... Ne4 {[%clk 0:02:30.7]} 11. Nxe4
{[%clk 0:02:37]} 11... Bxa1 {[%clk 0:02:30]} 12. Qh6 {[%clk 0:02:37.8]} 12...
Bg7 {[%clk 0:02:28]} 13. Qh4 {[%clk 0:02:38]} 13... f6 {[%clk 0:02:20.2]} 14.
Neg5 {[%clk 0:02:32.1]} 14... fxg5 {[%clk 0:02:12.6]} 15. Nxg5 {[%clk 0:02:33]}
15... Rf6 {[%clk 0:01:43.5]} 16. Qxh7+ {[%clk 0:02:29.8]} 16... Kf8 {[%clk
0:01:43.6]} 17. Bb2 {[%clk 0:02:00.7]} 17... Bg8 {[%clk 0:01:32.6]} 18. Qh4
{[%clk 0:02:01.3]} 18... e5 {[%clk 0:01:30.7]} 19. Rd1 {[%clk 0:01:55.6]} 19...
Qe7 {[%clk 0:01:26.5]} 20. f4 {[%clk 0:01:30.8]} 20... Re8 {[%clk 0:01:13.8]}
21. Nh7+ {[%clk 0:01:01.5]} 21... Bxh7 {[%clk 0:01:05.8]} 22. Qxh7 {[%clk
0:01:02.4]} 22... Nd4 {[%clk 0:00:30.3]} 23. Bd5 {[%clk 0:00:58.8]} 23... Ne6
{[%clk 0:00:30.2]} 24. fxe5 {[%clk 0:00:59.3]} 24... dxe5 {[%clk 0:00:27]} 25.
Bxe5 {[%clk 0:01:00.2]} 25... Rf7 {[%clk 0:00:16.4]} 26. Bxg7+ {[%clk
0:01:00.3]} 26... Rxg7 {[%clk 0:00:14.2]} 27. Rf1+ {[%clk 0:01:00.7]} 27... Qf7
{[%clk 0:00:09]} 28. Qh8+ {[%clk 0:00:47.2]} 28... Ke7 {[%clk 0:00:05.3]} 29.
Rxf7+ {[%clk 0:00:47.8]} 29... Rxf7 {[%clk 0:00:04.7]} 30. Qe5 {[%clk
0:00:47.6]} 30... Rf6 {[%clk 0:00:02.6]} 31. Bxb7 {[%clk 0:00:45.2]} 31... Kf8
{[%clk 0:00:01.6]} 32. Qxf6+ {[%clk 0:00:44.1]} 32... Kg8 {[%clk 0:00:01.6]} 33.
Bd5 {[%clk 0:00:44.6]} 1-0

[Event "Late-Titled-Tuesday-Blitz-January-23-2024"]
[Site "Chess.com"]
[Date "2024.01.23"]
[Round "8"]
[White "djano"]
[Black "sergiochess83"]
[Result "1/2-1/2"]
[WhiteElo "2719"]
[BlackElo "2883"]
[TimeControl "180+1"]
[EndTime "15:24:30 PST"]
[Termination "Game drawn by repetition"]

1. e4 {[%clk 0:03:00.9]} 1... c5 {[%clk 0:02:57.4]} 2. Nc3 {[%clk 0:03:00.6]}
2... e6 {[%clk 0:02:55.6]} 3. f4 {[%clk 0:02:59.2]} 3... d5 {[%clk 0:02:55.7]}
4. Nf3 {[%clk 0:02:59.3]} 4... dxe4 {[%clk 0:02:55.4]} 5. Nxe4 {[%clk 0:02:59]}
5... Nd7 {[%clk 0:02:53.5]} 6. g3 {[%clk 0:02:51.4]} 6... Ngf6 {[%clk
0:02:47.3]} 7. Nxf6+ {[%clk 0:02:49.8]} 7... Nxf6 {[%clk 0:02:45.1]} 8. Bg2
{[%clk 0:02:50]} 8... Be7 {[%clk 0:02:43.4]} 9. O-O {[%clk 0:02:49.3]} 9... O-O
{[%clk 0:02:43.5]} 10. b3 {[%clk 0:02:40.5]} 10... Qc7 {[%clk 0:02:36.4]} 11.
Bb2 {[%clk 0:02:38.6]} 11... b6 {[%clk 0:02:36.8]} 12. Ne5 {[%clk 0:02:30.8]}
12... Bb7 {[%clk 0:02:36.4]} 13. Ng4 {[%clk 0:02:18.8]} 13... Bxg2 {[%clk
0:02:01.6]} 14. Kxg2 {[%clk 0:02:19]} 14... Qd8 {[%clk 0:01:51]} 15. Nxf6+
{[%clk 0:02:09.1]} 15... Bxf6 {[%clk 0:01:50.8]} 16. Bxf6 {[%clk 0:02:09.5]}
16... Qxf6 {[%clk 0:01:51.4]} 17. d3 {[%clk 0:02:09.9]} 17... Rad8 {[%clk
0:01:50.2]} 18. Qf3 {[%clk 0:02:09.8]} 18... Rd5 {[%clk 0:01:50]} 19. a4 {[%clk
0:02:07.4]} 19... Rfd8 {[%clk 0:01:49.3]} 20. Rae1 {[%clk 0:02:06.8]} 20... h5
{[%clk 0:01:45]} 21. Re2 {[%clk 0:02:00.1]} 21... g6 {[%clk 0:01:45.2]} 22. Rfe1
{[%clk 0:02:00.1]} 22... Kg7 {[%clk 0:01:43.6]} 23. Re5 {[%clk 0:01:59.2]} 23...
a6 {[%clk 0:01:37.3]} 24. R1e2 {[%clk 0:01:56.4]} 24... b5 {[%clk 0:01:37]} 25.
axb5 {[%clk 0:01:56.3]} 25... axb5 {[%clk 0:01:37.9]} 26. Qf2 {[%clk 0:01:49.7]}
26... Qe7 {[%clk 0:01:15]} 27. Qe3 {[%clk 0:01:44]} 27... Qc7 {[%clk 0:01:06.7]}
28. Qe4 {[%clk 0:01:32.3]} 28... R8d7 {[%clk 0:00:56.9]} 29. Qf3 {[%clk
0:01:22.9]} 29... c4 {[%clk 0:00:54]} 30. dxc4 {[%clk 0:01:14.1]} 30... bxc4
{[%clk 0:00:54.9]} 31. Rxd5 {[%clk 0:01:05.3]} 31... Rxd5 {[%clk 0:00:53.6]} 32.
Qc3+ {[%clk 0:01:05.1]} 32... Kf8 {[%clk 0:00:41.4]} 33. Qxc4 {[%clk 0:01:04.9]}
33... Qxc4 {[%clk 0:00:40.6]} 34. bxc4 {[%clk 0:01:04.9]} 34... Rd4 {[%clk
0:00:41.3]} 35. Kf3 {[%clk 0:00:56]} 35... Rxc4 {[%clk 0:00:41.4]} 36. Ke3
{[%clk 0:00:56.1]} 36... Ke7 {[%clk 0:00:39.8]} 37. Kd3 {[%clk 0:00:56.3]} 37...
Ra4 {[%clk 0:00:39.9]} 38. c3 {[%clk 0:00:53.2]} 38... Kd6 {[%clk 0:00:28]} 39.
Rb2 {[%clk 0:00:52.7]} 39... Kc6 {[%clk 0:00:27.1]} 40. c4 {[%clk 0:00:46.4]}
40... f6 {[%clk 0:00:21]} 41. Re2 {[%clk 0:00:46.6]} 41... Kd6 {[%clk
0:00:20.5]} 42. Rb2 {[%clk 0:00:46.4]} 42... Kc6 {[%clk 0:00:19.6]} 43. Re2
{[%clk 0:00:46.3]} 43... Kd6 {[%clk 0:00:19.7]} 44. Rb2 {[%clk 0:00:46.2]} 44...
Kc6 {[%clk 0:00:20.2]} 1/2-1/2

[Event "Late-Titled-Tuesday-Blitz-January-23-2024"]
[Site "Chess.com"]
[Date "2024.01.23"]
[Round "8"]
[White "shimastream"]
[Black "js20000"]
[Result "1/2-1/2"]
[WhiteElo "3010"]
[BlackElo "2903"]
[TimeControl "180+1"]
[EndTime "15:24:34 PST"]
[Termination "Game drawn by repetition"]

1. d4 {[%clk 0:03:00.9]} 1... d5 {[%clk 0:02:59.7]} 2. c4 {[%clk 0:03:00.3]}
2... e6 {[%clk 0:03:00.1]} 3. Nc3 {[%clk 0:02:59.7]} 3... Nf6 {[%clk 0:02:59.5]}
4. Bg5 {[%clk 0:02:58.9]} 4... Be7 {[%clk 0:02:58.7]} 5. e3 {[%clk 0:02:58.3]}
5... h6 {[%clk 0:02:55.4]} 6. Bh4 {[%clk 0:02:53.9]} 6... O-O {[%clk 0:02:55.1]}
7. Nf3 {[%clk 0:02:53.1]} 7... b6 {[%clk 0:02:55]} 8. Bxf6 {[%clk 0:02:49.2]}
8... Bxf6 {[%clk 0:02:54.8]} 9. cxd5 {[%clk 0:02:50.1]} 9... exd5 {[%clk
0:02:55]} 10. b4 {[%clk 0:02:48.1]} 10... c6 {[%clk 0:02:50.9]} 11. Be2 {[%clk
0:02:47.1]} 11... Be6 {[%clk 0:02:50.7]} 12. O-O {[%clk 0:02:46.8]} 12... Qd6
{[%clk 0:02:51.1]} 13. Qb3 {[%clk 0:02:47]} 13... Nd7 {[%clk 0:02:48.7]} 14.
Rfd1 {[%clk 0:02:47.1]} 14... a5 {[%clk 0:02:47.8]} 15. b5 {[%clk 0:02:47.2]}
15... c5 {[%clk 0:02:47.7]} 16. Rac1 {[%clk 0:02:40.2]} 16... Rac8 {[%clk
0:02:45.8]} 17. g3 {[%clk 0:02:36]} 17... Rfd8 {[%clk 0:02:41.4]} 18. Bf1 {[%clk
0:02:35.6]} 18... cxd4 {[%clk 0:02:21.4]} 19. Nxd4 {[%clk 0:02:36.5]} 19... Nc5
{[%clk 0:02:21.3]} 20. Qb1 {[%clk 0:02:33.5]} 20... Bg4 {[%clk 0:02:19.4]} 21.
Rd2 {[%clk 0:02:32.2]} 21... Ne6 {[%clk 0:01:52.3]} 22. Nc6 {[%clk 0:02:31]}
22... Bxc3 {[%clk 0:01:45.4]} 23. Rxc3 {[%clk 0:02:29.5]} 23... Ng5 {[%clk
0:01:35.7]} 24. Bg2 {[%clk 0:02:29.3]} 24... Bf3 {[%clk 0:01:34.3]} 25. Rcd3
{[%clk 0:02:17.6]} 25... Bxg2 {[%clk 0:01:18.3]} 26. Kxg2 {[%clk 0:02:18.5]}
26... Qe6 {[%clk 0:01:18.5]} 27. Qd1 {[%clk 0:02:13.3]} 27... Re8 {[%clk
0:01:11.3]} 28. h4 {[%clk 0:01:58.7]} 28... Qh3+ {[%clk 0:01:07.8]} 29. Kg1
{[%clk 0:01:58.3]} 29... Ne4 {[%clk 0:01:07.8]} 30. Rc2 {[%clk 0:01:58.2]} 30...
Re6 {[%clk 0:00:44.1]} 31. Rxd5 {[%clk 0:01:49.7]} 31... Rce8 {[%clk 0:00:30.6]}
32. Rd8 {[%clk 0:01:43.3]} 32... Nxg3 {[%clk 0:00:26.6]} 33. Rxe8+ {[%clk
0:01:42.5]} 33... Rxe8 {[%clk 0:00:26.7]} 34. fxg3 {[%clk 0:01:43.1]} 34...
Qxg3+ {[%clk 0:00:27.3]} 35. Rg2 {[%clk 0:01:43.1]} 35... Qxe3+ {[%clk
0:00:27.1]} 36. Kh1 {[%clk 0:01:19.5]} 36... Qh3+ {[%clk 0:00:26.7]} 37. Kg1
{[%clk 0:01:03.5]} 37... Qxh4 {[%clk 0:00:25.2]} 38. Rf2 {[%clk 0:00:58.5]}
38... Qg5+ {[%clk 0:00:20.5]} 39. Rg2 {[%clk 0:00:52.6]} 39... Qh4 {[%clk
0:00:15.8]} 40. Rf2 {[%clk 0:00:52.1]} 40... Qg5+ {[%clk 0:00:15.9]} 41. Rg2
{[%clk 0:00:49.9]} 41... Qh4 {[%clk 0:00:06.9]} 1/2-1/2

[Event "Late-Titled-Tuesday-Blitz-January-23-2024"]
[Site "Chess.com"]
[Date "2024.01.23"]
[Round "8"]
[White "PNEPaul"]
[Black "Maect19"]
[Result "0-1"]
[WhiteElo "1922"]
[BlackElo "2320"]
[TimeControl "180+1"]
[EndTime "15:24:34 PST"]
[Termination "Maect19 won on time"]

1. e4 {[%clk 0:03:00.9]} 1... e6 {[%clk 0:02:59.1]} 2. d4 {[%clk 0:03:00]} 2...
d5 {[%clk 0:02:59.2]} 3. e5 {[%clk 0:03:00.3]} 3... c5 {[%clk 0:02:58.9]} 4. Qg4
{[%clk 0:03:00.2]} 4... cxd4 {[%clk 0:02:56.6]} 5. Nf3 {[%clk 0:03:00.2]} 5...
Nc6 {[%clk 0:02:56.5]} 6. Bd3 {[%clk 0:02:59.9]} 6... Nge7 {[%clk 0:02:51.5]} 7.
O-O {[%clk 0:02:59.5]} 7... h5 {[%clk 0:02:51]} 8. Qg3 {[%clk 0:02:59.4]} 8...
g6 {[%clk 0:02:50.9]} 9. a3 {[%clk 0:02:57.9]} 9... Nf5 {[%clk 0:02:49.1]} 10.
Bxf5 {[%clk 0:02:57.1]} 10... gxf5 {[%clk 0:02:48.5]} 11. c3 {[%clk 0:02:34.5]}
11... h4 {[%clk 0:02:44.1]} 12. Qg5 {[%clk 0:02:23]} 12... Qxg5 {[%clk
0:02:39.4]} 13. Bxg5 {[%clk 0:02:20.8]} 13... dxc3 {[%clk 0:02:37.7]} 14. Nxc3
{[%clk 0:02:17.7]} 14... Be7 {[%clk 0:02:28.9]} 15. Nb5 {[%clk 0:02:16]} 15...
Rb8 {[%clk 0:02:20.6]} 16. Nd6+ {[%clk 0:02:06.1]} 16... Kf8 {[%clk 0:02:20]}
17. Nxc8 {[%clk 0:01:59.4]} 17... Rxc8 {[%clk 0:02:18.9]} 18. Bf4 {[%clk
0:01:48.6]} 18... Kg7 {[%clk 0:02:09.9]} 19. Rfe1 {[%clk 0:01:44.5]} 19... Rc7
{[%clk 0:02:08.4]} 20. b4 {[%clk 0:01:42.8]} 20... a6 {[%clk 0:02:07.8]} 21. h3
{[%clk 0:01:24.9]} 21... Kg6 {[%clk 0:02:04.7]} 22. Rad1 {[%clk 0:01:11.9]}
22... Rhc8 {[%clk 0:02:02.6]} 23. Be3 {[%clk 0:01:04.7]} 23... Na7 {[%clk
0:01:53.8]} 24. Bxa7 {[%clk 0:01:02.9]} 24... Rc3 {[%clk 0:01:52.1]} 25. Re3
{[%clk 0:00:52.2]} 25... Rxe3 {[%clk 0:01:44.1]} 26. fxe3 {[%clk 0:00:51.1]}
26... Rc3 {[%clk 0:01:44.2]} 27. Rd4 {[%clk 0:00:36.5]} 27... Rxe3 {[%clk
0:01:26.1]} 28. Nxh4+ {[%clk 0:00:31.1]} 28... Bxh4 {[%clk 0:01:25.5]} 29. Rxh4
{[%clk 0:00:30.8]} 29... Rxa3 {[%clk 0:01:26.1]} 30. Bc5 {[%clk 0:00:24.9]}
30... Ra1+ {[%clk 0:01:24.5]} 31. Kh2 {[%clk 0:00:24]} 31... Re1 {[%clk
0:01:20.3]} 32. Bd6 {[%clk 0:00:22.7]} 32... Kg5 {[%clk 0:01:13.8]} 33. Rh7
{[%clk 0:00:20.6]} 33... Kg6 {[%clk 0:01:13.2]} 34. Rh8 {[%clk 0:00:18.7]} 34...
d4 {[%clk 0:01:10.2]} 35. Rh4 {[%clk 0:00:11]} 35... d3 {[%clk 0:00:50.8]} 36.
Rd4 {[%clk 0:00:09.2]} 36... Re3 {[%clk 0:00:49.5]} 37. Bc5 {[%clk 0:00:03.7]}
37... Rxe5 {[%clk 0:00:46.9]} 38. Rxd3 {[%clk 0:00:03.4]} 38... Re4 {[%clk
0:00:47.4]} 0-1

[Event "Late-Titled-Tuesday-Blitz-January-23-2024"]
[Site "Chess.com"]
[Date "2024.01.23"]
[Round "8"]
[White "maurovargas01"]
[Black "NtcPou"]
[Result "0-1"]
[WhiteElo "1830"]
[BlackElo "2011"]
[TimeControl "180+1"]
[EndTime "15:24:49 PST"]
[Termination "NtcPou won on time"]

1. e4 {[%clk 0:02:59.2]} 1... c6 {[%clk 0:02:59.2]} 2. Nc3 {[%clk 0:02:57.6]}
2... d5 {[%clk 0:02:58.6]} 3. d3 {[%clk 0:02:57.9]} 3... e5 {[%clk 0:02:56.4]}
4. g3 {[%clk 0:02:57]} 4... Nf6 {[%clk 0:02:55.2]} 5. Bg2 {[%clk 0:02:56.6]}
5... Be6 {[%clk 0:02:54]} 6. f4 {[%clk 0:02:56.1]} 6... exf4 {[%clk 0:02:34.1]}
7. Bxf4 {[%clk 0:02:51.7]} 7... dxe4 {[%clk 0:02:17.6]} 8. Nxe4 {[%clk
0:02:49.3]} 8... Nd5 {[%clk 0:02:13.1]} 9. Bg5 {[%clk 0:02:42.3]} 9... Qa5+
{[%clk 0:02:06.9]} 10. Bd2 {[%clk 0:02:41.1]} 10... Bb4 {[%clk 0:02:05]} 11. c3
{[%clk 0:02:39.7]} 11... Be7 {[%clk 0:02:04.5]} 12. c4 {[%clk 0:02:38]} 12...
Nb4 {[%clk 0:02:02.8]} 13. Qb3 {[%clk 0:02:20.8]} 13... N8a6 {[%clk 0:01:53.4]}
14. a3 {[%clk 0:02:20.1]} 14... O-O-O {[%clk 0:01:52.2]} 15. Bf1 {[%clk
0:01:58.5]} 15... Rhe8 {[%clk 0:01:23.4]} 16. Nf3 {[%clk 0:01:57.9]} 16... Bg4
{[%clk 0:01:22.1]} 17. Be2 {[%clk 0:01:57.4]} 17... Bxf3 {[%clk 0:01:19.3]} 18.
Bxf3 {[%clk 0:01:53.8]} 18... Rxd3 {[%clk 0:01:18.8]} 19. Qxd3 {[%clk
0:01:39.4]} 19... Nxd3+ {[%clk 0:01:18.5]} 20. Ke2 {[%clk 0:01:39.3]} 20... Qd8
{[%clk 0:01:11.6]} 21. Rad1 {[%clk 0:01:36.2]} 21... Nxb2 {[%clk 0:01:09.6]} 22.
Rb1 {[%clk 0:01:34]} 22... Nxc4 {[%clk 0:01:07.4]} 23. Bf4 {[%clk 0:01:30.5]}
23... f5 {[%clk 0:01:06.1]} 24. Nc3 {[%clk 0:01:17]} 24... g5 {[%clk 0:01:01.3]}
25. Rhd1 {[%clk 0:01:16]} 25... Qa5 {[%clk 0:00:57.4]} 26. Bd2 {[%clk
0:00:33.9]} 26... Nxd2 {[%clk 0:00:55.8]} 27. Kxd2 {[%clk 0:00:33.8]} 27... Rd8+
{[%clk 0:00:53.4]} 28. Kc2 {[%clk 0:00:33.6]} 28... Rxd1 {[%clk 0:00:52.5]} 29.
Rxd1 {[%clk 0:00:32.3]} 29... Qxa3 {[%clk 0:00:49.8]} 30. g4 {[%clk 0:00:27.8]}
30... f4 {[%clk 0:00:47.8]} 31. Be4 {[%clk 0:00:27.2]} 31... Nc5 {[%clk
0:00:47.5]} 32. Bf5+ {[%clk 0:00:26.1]} 32... Kc7 {[%clk 0:00:47.6]} 33. Rd5
{[%clk 0:00:20.6]} 33... Bd6 {[%clk 0:00:41.9]} 34. Rd4 {[%clk 0:00:04.1]} 34...
Qb3+ {[%clk 0:00:41.1]} 35. Kd2 {[%clk 0:00:01.9]} 35... Be5 {[%clk 0:00:39.7]}
0-1

[Event "Late-Titled-Tuesday-Blitz-January-23-2024"]
[Site "Chess.com"]
[Date "2024.01.23"]
[Round "8"]
[White "TigrVShlyape"]
[Black "GoltsevDmitry2000"]
[Result "1-0"]
[WhiteElo "2945"]
[BlackElo "2819"]
[TimeControl "180+1"]
[EndTime "15:24:52 PST"]
[Termination "TigrVShlyape won by checkmate"]

1. d4 {[%clk 0:03:00.9]} 1... e6 {[%clk 0:02:49.4]} 2. Bf4 {[%clk 0:02:55]} 2...
Nf6 {[%clk 0:02:47.7]} 3. e3 {[%clk 0:02:52.3]} 3... Be7 {[%clk 0:02:47.6]} 4.
h3 {[%clk 0:02:47.3]} 4... b6 {[%clk 0:02:47.1]} 5. Nf3 {[%clk 0:02:47.2]} 5...
Bb7 {[%clk 0:02:47]} 6. a4 {[%clk 0:02:47.5]} 6... O-O {[%clk 0:02:45.6]} 7.
Nbd2 {[%clk 0:02:47.1]} 7... c5 {[%clk 0:02:42.1]} 8. Bd3 {[%clk 0:02:46.5]}
8... d5 {[%clk 0:02:40.1]} 9. c3 {[%clk 0:02:45.3]} 9... Nc6 {[%clk 0:02:38.6]}
10. O-O {[%clk 0:02:44]} 10... Nd7 {[%clk 0:02:35.6]} 11. Qe2 {[%clk 0:02:35.7]}
11... f5 {[%clk 0:02:31.3]} 12. Bh2 {[%clk 0:02:15.3]} 12... c4 {[%clk
0:02:17.5]} 13. Bc2 {[%clk 0:02:12.7]} 13... a6 {[%clk 0:02:18.1]} 14. b3 {[%clk
0:02:00.8]} 14... b5 {[%clk 0:02:17.5]} 15. bxc4 {[%clk 0:01:56.6]} 15... bxc4
{[%clk 0:02:15.8]} 16. Rab1 {[%clk 0:01:56.9]} 16... Na5 {[%clk 0:02:07.9]} 17.
g4 {[%clk 0:01:32.5]} 17... Bc6 {[%clk 0:01:59.3]} 18. Ne5 {[%clk 0:01:30.4]}
18... Nxe5 {[%clk 0:01:56.8]} 19. Bxe5 {[%clk 0:01:30.4]} 19... Qd7 {[%clk
0:01:37.9]} 20. Kh2 {[%clk 0:01:28.9]} 20... Bxa4 {[%clk 0:01:20.2]} 21. Bxa4
{[%clk 0:01:25.2]} 21... Qxa4 {[%clk 0:01:21.1]} 22. Rg1 {[%clk 0:01:16.6]}
22... g6 {[%clk 0:00:55.6]} 23. gxf5 {[%clk 0:01:02.8]} 23... Rxf5 {[%clk
0:00:53.6]} 24. f4 {[%clk 0:00:58.1]} 24... Qc2 {[%clk 0:00:43.5]} 25. Qg2
{[%clk 0:00:43.9]} 25... Qxc3 {[%clk 0:00:32.8]} 26. e4 {[%clk 0:00:42.4]} 26...
Rh5 {[%clk 0:00:19.8]} 27. exd5 {[%clk 0:00:37.9]} 27... Rf8 {[%clk 0:00:15.4]}
28. Ne4 {[%clk 0:00:35.8]} 28... Qd3 {[%clk 0:00:09.6]} 29. Rb6 {[%clk
0:00:31.2]} 29... exd5 {[%clk 0:00:05.1]} 30. Rxg6+ {[%clk 0:00:30.2]} 30... Kf7
{[%clk 0:00:04.7]} 31. Rg7+ {[%clk 0:00:26.8]} 31... Ke8 {[%clk 0:00:05.3]} 32.
Qg4 {[%clk 0:00:21.5]} 32... Qc2+ {[%clk 0:00:01.8]} 33. Rg2 {[%clk 0:00:21.3]}
33... Qxe4 {[%clk 0:00:02]} 34. Qc8+ {[%clk 0:00:20.7]} 34... Bd8 {[%clk
0:00:02]} 35. Qd7# {[%clk 0:00:21.1]} 1-0

[Event "Late-Titled-Tuesday-Blitz-January-23-2024"]
[Site "Chess.com"]
[Date "2024.01.23"]
[Round "8"]
[White "TanitoluwaAps116"]
[Black "TheoSlade"]
[Result "1-0"]
[WhiteElo "2705"]
[BlackElo "2471"]
[TimeControl "180+1"]
[EndTime "15:24:52 PST"]
[Termination "TanitoluwaAps116 won on time"]

1. e4 {[%clk 0:03:00.1]} 1... e5 {[%clk 0:03:00.3]} 2. Nf3 {[%clk 0:02:54.1]}
2... Nc6 {[%clk 0:03:00.9]} 3. Bc4 {[%clk 0:02:52.8]} 3... Bc5 {[%clk
0:03:00.8]} 4. d3 {[%clk 0:02:51.3]} 4... Nf6 {[%clk 0:03:01]} 5. O-O {[%clk
0:02:50.6]} 5... O-O {[%clk 0:03:01.1]} 6. h3 {[%clk 0:02:49.9]} 6... h6 {[%clk
0:02:53.7]} 7. Re1 {[%clk 0:02:48.7]} 7... d6 {[%clk 0:02:51.7]} 8. c3 {[%clk
0:02:48.7]} 8... Bb6 {[%clk 0:02:48.5]} 9. a4 {[%clk 0:02:46.6]} 9... a5 {[%clk
0:02:43.4]} 10. Nbd2 {[%clk 0:02:45.8]} 10... Ne7 {[%clk 0:02:42.3]} 11. Nf1
{[%clk 0:02:44.9]} 11... Ng6 {[%clk 0:02:34.3]} 12. Ng3 {[%clk 0:02:44.9]} 12...
c6 {[%clk 0:02:32.3]} 13. Bb3 {[%clk 0:02:41.8]} 13... Re8 {[%clk 0:02:07.5]}
14. Be3 {[%clk 0:02:41.4]} 14... Bxe3 {[%clk 0:02:05.6]} 15. fxe3 {[%clk
0:02:42]} 15... d5 {[%clk 0:02:03.6]} 16. exd5 {[%clk 0:02:40.3]} 16... cxd5
{[%clk 0:02:04.5]} 17. Kh2 {[%clk 0:02:30.5]} 17... Qd6 {[%clk 0:01:47]} 18. e4
{[%clk 0:02:26.4]} 18... Be6 {[%clk 0:01:41.1]} 19. Qc2 {[%clk 0:01:56.6]} 19...
Rad8 {[%clk 0:01:36.1]} 20. Rad1 {[%clk 0:01:55.3]} 20... Nf4 {[%clk 0:01:31.9]}
21. d4 {[%clk 0:01:52.5]} 21... Nxe4 {[%clk 0:00:50.2]} 22. dxe5 {[%clk
0:01:40.7]} 22... Qb6 {[%clk 0:00:30.8]} 23. Nd4 {[%clk 0:01:19.7]} 23... Nxg3
{[%clk 0:00:26.5]} 24. Kxg3 {[%clk 0:01:19.6]} 24... Ng6 {[%clk 0:00:23.4]} 25.
Qf2 {[%clk 0:01:19.8]} 25... Qc7 {[%clk 0:00:19.2]} 26. Qe3 {[%clk 0:00:59.2]}
26... Bc8 {[%clk 0:00:07.5]} 27. Nf3 {[%clk 0:00:53.5]} 27... Be6 {[%clk
0:00:03.8]} 28. Bc2 {[%clk 0:00:53.3]} 28... Ne7 {[%clk 0:00:02.7]} 29. Nd4
{[%clk 0:00:53.1]} 29... Ng6 {[%clk 0:00:02.9]} 30. Kh2 {[%clk 0:00:51.1]} 30...
Bc8 {[%clk 0:00:02.9]} 31. Bxg6 {[%clk 0:00:44.9]} 31... fxg6 {[%clk 0:00:03.8]}
32. Nb5 {[%clk 0:00:40.9]} 32... Qf7 {[%clk 0:00:03.5]} 33. Qg3 {[%clk
0:00:39.8]} 33... Re7 {[%clk 0:00:03.6]} 34. Rf1 {[%clk 0:00:35.7]} 34... Qe8
{[%clk 0:00:03.8]} 35. Nd6 {[%clk 0:00:30.2]} 35... Qc6 {[%clk 0:00:03.5]} 36.
Qxg6 {[%clk 0:00:29.6]} 36... Rxe5 {[%clk 0:00:03.4]} 37. Rf7 {[%clk 0:00:23.5]}
1-0